[Event "Teplice Open 2022"]
[Site "Teplice"]
[Date "2022.06.18"]
[Round "1.20"]
[White "Shatil, Shir"]
[Black "Santiago, Yago De Moura"]
[Result "1/2-1/2"]
[ECO "D96"]
[WhiteElo "2083"]
[BlackElo "2498"]
[Annotator "TA"]
[PlyCount "62"]
[EventDate "2022.06.18"]
[EventType "swiss"]
[EventCountry "CZE"]
[SourceTitle "playchess.com"]
[Source "ChessBase"]
[SourceQuality "1"]
[TimeControl "40/5400+30:1800+30"]

{[%evp 11,62,6,47,31,58,24,28,44,55,56,56,66,62,41,36,33,37,35,25,22,33,26,42,37,62,62,72,19,18,12,12,16,16,0,0,0,0,0,0,0,0,0,0,0,0,0,0,0,0,0,0,0,0]} 1. d4 {[%emt 0:00:03]} Nf6 {[%emt 0:00:43]} 2. c4 {[%emt 0:00:06]} g6 {[%emt 0:00:57]} 3. Nc3 {[%emt 0:00:31]} d5 {[%emt 0:00:08]} 4. Nf3 {[%emt 0:00:52]} Bg7 {[%emt 0:00:10]} 5. Qb3 {[%emt 0:00:02]} dxc4 {[%emt 0:00:48]} 6. Qxc4 {[%emt 0:00:03]} Be6 {[%emt 0:00:22]} 7. Qb5+ {[%emt 0:02:25] 7.Qa4+ is the hot move. D96: Grünfeld: Russian System (5 Qb3): sidelines.} Nc6 {[%emt 0:00:12]} 8. Qxb7 {[%emt 0:01:49]} Bd7 {[%emt 0:00:08] [#] Threatens to win with ...Rb8.} 9. Qb3 {[%emt 0:00:08] White has an edge.} O-O {[%emt 0:03:38]} 10. e3 {[%emt 0:07:59]} Rb8 {[%emt 0:06:25]} 11. Qd1 {[%emt 0:00:09] [#]} Bf5 $146 {[%emt 0:00:12] White must now prevent ...Nb4.} ({Predecessor:} 11... Na5 12. Be2 c5 13. O-O Qc7 14. d5 Bf5 15. Bd3 Rfd8 16. e4 Bg4 17. h3 Bxf3 18. Qxf3 {1-0 (24) Tin,J (2467)-Ioannidis,E (2411) Chess.com INT 2020}) 12. Nh4 {[%emt 0:11:38]} (12. Be2 $5 {[%cal Re1g1]}) 12... Bg4 {[%emt 0:02:54]} 13. Be2 {[%emt 0:00:52]} Bxe2 {[%emt 0:04:48]} 14. Nxe2 {[%emt 0:12:25]} e5 {[%emt 0:00:34]} 15. Nf3 {[%emt 0:00:24]} exd4 {[%emt 0:04:39]} 16. exd4 {[%emt 0:00:55]} Nd5 {[%emt 0:13:36]} 17. O-O {[%emt 0:02:14]} Nde7 {[%emt 0:00:08]} 18. b3 {[%emt 0:10:42]} Nf5 {[%emt 0:00:22]} 19. Bf4 {[%emt 0:02:50]} (19. Bg5 $16 Qd7 20. Rc1) 19... Ncxd4 $11 {[%emt 0:03:29] The position is equal.} (19... Nfxd4 {keeps more tension.} 20. Nexd4 Nxd4 21. Rc1 Rc8) 20. Nexd4 {[%emt 0:00:46]} (20. Nfxd4 {looks sharper.} Nxd4 21. Rc1 Rc8 22. b4) 20... Nxd4 {[%emt 0:00:07]} 21. Nxd4 {[%emt 0:00:07]} (21. Rc1 {is more complex.} Rc8 22. Nxd4 Bxd4 23. Rc6) 21... Bxd4 {[%emt 0:00:06]} 22. Bxc7 {[%emt 0:00:06]} Bxf2+ $1 {[%emt 0:00:09]} 23. Rxf2 {[%emt 0:00:07]} Qxc7 {[%emt 0:00:06]} 24. Qf3 {[%emt 0:06:57]} Rb5 {[%emt 0:03:59][%cal Bb8b5,Bb5e5,Be5e4][%mdl 32]} 25. Raf1 {[%emt 0:02:17]} Re5 {[%emt 0:01:42]} 26. Qf6 {[%emt 0:02:43]} a5 {[%emt 0:00:25]} 27. h3 {[%emt 0:01:21]} Re4 {[%emt 0:03:07]} 28. Rf4 {[%emt 0:03:14]} Re2 {[%emt 0:03:32]} 29. R4f2 {[%emt 0:01:19]} Re4 {[%emt 0:04:01]} 30. Rf4 {[%emt 0:00:11]} Re2 {[%emt 0:00:06]} 31. R4f2 {[%emt 0:00:04]} Re4 {[%emt 0:00:04] Weighted Error Value: White=0.07 (flawless) /Black=0.05 (flawless)} 1/2-1/2